fUSD/lending_fUSD_20260525
["ID","MTS","AMOUNT","RATE_DAILY","PERIOD"]
[422972168,1779696643000,-398.0,0.00013699,2]
[422972164,1779696643000,-404.0,0.00013699,2]
[422972154,1779696643000,-404.0,0.00013699,2]
[422972159,1779696643000,-404.0,0.00013699,2]
[422972156,1779696643000,-404.0,0.00013699,2]
[422972152,1779696643000,-404.0,0.00013699,2]
[422972170,1779696643000,-398.0,0.00013699,2]
[422972107,1779696643000,-462.0,0.00013699,2]
[422972144,1779696643000,-459.8920984,0.00013699,2]
[422972117,1779696643000,-462.0,0.00013699,2]
[422972173,1779696643000,-202.672012,0.000137,2]
[422972105,1779696643000,-462.0,0.00013699,2]
[422972058,1779696643000,-500.0,0.00013698,2]
[422972055,1779696643000,-500.0,0.00013698,2]
[422972060,1779696643000,-500.0,0.00013698,2]
[422972053,1779696643000,-500.0,0.00013698,2]
[422972064,1779696643000,-500.0,0.00013698,2]
[422972061,1779696643000,-500.0,0.00013698,2]
[422972068,1779696643000,-7023.78,0.00013699,2]
[422972066,1779696643000,-491.97640748,0.00013698,2]
[422972070,1779696643000,-153.293974,0.00013699,2]
[422972083,1779696643000,-587.05103,0.00013699,2]
[422972085,1779696643000,-587.05103,0.00013699,2]
[422972087,1779696643000,-199.10243,0.00013699,2]
[422972076,1779696643000,-151.0,0.00013699,2]
[422972075,1779696643000,-2500.0,0.00013699,2]
[422972080,1779696643000,-587.05103,0.00013699,2]
[422972090,1779696643000,-199.10243,0.00013699,2]
[422972078,1779696643000,-587.05103,0.00013699,2]
[422972072,1779696643000,-200.0,0.00013699,2]
[422972092,1779696643000,-199.10243,0.00013699,2]
[422972096,1779696643000,-166.66,0.00013699,2]
[422972094,1779696643000,-199.10243,0.00013699,2]
[422972109,1779696643000,-462.0,0.00013699,2]
[422972103,1779696643000,-462.0,0.00013699,2]
[422972114,1779696643000,-462.0,0.00013699,2]
[422972097,1779696643000,-610.0,0.00013699,2]
[422972099,1779696643000,-610.0,0.00013699,2]
[422972101,1779696643000,-665.0,0.00013699,2]
[422972111,1779696643000,-462.0,0.00013699,2]
[422972185,1779696643000,-150.0,0.00013702,2]
[422972161,1779696643000,-404.0,0.00013699,2]
[422972188,1779696643000,-150.0,0.00013707,2]
[422972238,1779696643000,-150.0,0.00013844,2]
[422972242,1779696643000,-150.0,0.00013862,2]
[422972244,1779696643000,-150.0,0.00013862,2]
[422972258,1779696643000,-150.0,0.00013916,2]
[422972248,1779696643000,-150.0,0.00013887,2]
[422972262,1779696643000,-3333.96732322,0.00013947,2]
[422972250,1779696643000,-150.0,0.00013904,2]
[422972256,1779696643000,-150.0,0.00013916,2]
[422972260,1779696643000,-150.0,0.00013927,2]
[422972252,1779696643000,-150.0,0.00013907,2]
[422972246,1779696643000,-150.0,0.00013867,2]
[422972254,1779696643000,-200.0,0.00013915,2]
[422972264,1779696643000,-150.0,0.00013947,2]
[422972240,1779696643000,-150.0,0.00013847,2]
[422972267,1779696643000,-180.99,0.00013951,2]
[422972279,1779696643000,-150.0,0.00013987,2]
[422972281,1779696643000,-150.0,0.00013987,2]
[422972283,1779696643000,-150.0,0.00013987,2]
[422972269,1779696643000,-150.0,0.00013956,2]
[422972285,1779696643000,-150.0,0.00013987,2]
[422972271,1779696643000,-150.0,0.00013967,2]
[422972287,1779696643000,-150.0,0.00013987,2]
[422972275,1779696643000,-150.0,0.00013987,2]
[422972273,1779696643000,-166.66,0.00013973,2]
[422972290,1779696643000,-250.0,0.00014,2]
[422972289,1779696643000,-19957.65629359,0.0001399,2]
[422972292,1779696643000,-3292.0,0.00014002,2]
[422972183,1779696643000,-150.0,0.00013702,2]
[422972277,1779696643000,-150.0,0.00013987,2]
[422972234,1779696643000,-150.0,0.00013827,2]
[422972151,1779696643000,-404.0,0.00013699,2]
[422972228,1779696643000,-150.0,0.00013807,2]
[422972190,1779696643000,-8967.06706591,0.0001372,2]
[422972192,1779696643000,-150.0,0.00013727,2]
[422972176,1779696643000,-616.0,0.000137,2]
[422972174,1779696643000,-1273.88,0.000137,2]
[422972172,1779696643000,-408.0,0.00013699,2]
[422972182,1779696643000,-885.0,0.000137,2]
[422972178,1779696643000,-1000.0,0.000137,2]
[422972180,1779696643000,-315.0,0.000137,2]
[422972194,1779696643000,-150.0,0.00013737,2]
[422972196,1779696643000,-150.0,0.00013737,2]
[422972204,1779696643000,-1543.0,0.00013765,2]
[422972206,1779696643000,-1543.0,0.00013765,2]
[422972210,1779696643000,-1543.0,0.00013765,2]
[422972236,1779696643000,-166.66,0.00013836,2]
[422972208,1779696643000,-1543.0,0.00013765,2]
[422972226,1779696643000,-259.96182998,0.00013792,2]
[422972232,1779696643000,-150.0,0.00013821,2]
[422972230,1779696643000,-150.0,0.00013809,2]
[422972212,1779696643000,-159.99456812,0.00013765,2]
[422972222,1779696643000,-150.0,0.00013773,2]
[422972220,1779696643000,-150.0,0.00013769,2]
[422972224,1779696643000,-150.0,0.00013787,2]
[422972216,1779696643000,-433.0,0.00013766,2]
[422972214,1779696643000,-246.38064849,0.00013765,2]
[422972199,1779696643000,-150.0,0.00013747,2]
[422972198,1779696643000,-150.0,0.00013737,2]
[422972201,1779696643000,-12250.42446121,0.00013758,2]
[422972218,1779696643000,-150.0,0.00013767,2]
[422972356,1779696644000,-314.140476,0.0001424,2]
[422972358,1779696644000,-587.05103,0.0001424,2]
[422972364,1779696644000,-314.140476,0.0001424,2]
[422972369,1779696644000,-199.10243,0.0001424,2]
[422972368,1779696644000,-199.10243,0.0001424,2]
[422972347,1779696644000,-151.0,0.0001424,2]
[422972353,1779696644000,-314.140476,0.0001424,2]
[422972351,1779696644000,-587.05103,0.0001424,2]
[422972340,1779696644000,-150.0,0.00014237,2]
[422972346,1779696644000,-319601.34571284,0.0001424,2]
[422972362,1779696644000,-587.05103,0.0001424,2]
[422972366,1779696644000,-153.790793,0.0001424,2]
[422972371,1779696644000,-199.10243,0.0001424,2]
[422972377,1779696644000,-166.66,0.00014247,2]
[422972372,1779696644000,-199.10243,0.0001424,2]
[422972360,1779696644000,-314.140476,0.0001424,2]
[422972373,1779696644000,-151.0,0.0001424,2]
[422972376,1779696644000,-959.2263246,0.00014244,2]
[422972375,1779696644000,-14154.8390789,0.00014244,2]
[422972374,1779696644000,-210.275453,0.0001424,2]
[422972385,1779696644000,-53425.1533868,0.0001427,2]
[422972383,1779696644000,-1246.5802165,0.00014268,2]
[422972378,1779696644000,-150.0,0.00014247,2]
[422972388,1779696644000,-500.0,0.0001427,2]
[422972379,1779696644000,-1532.22063043,0.0001425,2]
[422972335,1779696644000,-150.0,0.00014237,2]
[422972355,1779696644000,-587.05103,0.0001424,2]
[422972337,1779696644000,-150.0,0.00014237,2]
[422972324,1779696644000,-150.0,0.00014154,2]
[422972349,1779696644000,-164.764743,0.0001424,2]
[422972305,1779696644000,-150.0,0.0001407,2]
[422972303,1779696644000,-150.0,0.00014067,2]
[422972306,1779696644000,-2000.0,0.00014086,2]
[422972293,1779696644000,-150.0,0.00014007,2]
[422972295,1779696644000,-150.0,0.00014023,2]
[422972308,1779696644000,-150.0,0.00014087,2]
[422972298,1779696644000,-150.0,0.00014047,2]
[422972300,1779696644000,-150.0,0.0001405,2]
[422972296,1779696644000,-150.0,0.00014027,2]
[422972301,1779696644000,-150.0,0.00014059,2]
[422972310,1779696644000,-150.0,0.00014107,2]
[422972312,1779696644000,-166.66,0.0001411,2]
[422972313,1779696644000,-150.0,0.00014127,2]
[422972315,1779696644000,-150.0,0.0001413,2]
[422972381,1779696644000,-150.0,0.00014267,2]
[422972325,1779696644000,-150.0,0.00014167,2]
[422972318,1779696644000,-12250.42446121,0.00014139,2]
[422972317,1779696644000,-150.0,0.0001413,2]
[422972322,1779696644000,-150.0,0.00014147,2]
[422972329,1779696644000,-150.0,0.00014201,2]
[422972327,1779696644000,-150.0,0.00014187,2]
[422972320,1779696644000,-150.0,0.00014143,2]
[422972334,1779696644000,-150.0,0.00014227,2]
[422972332,1779696644000,-10151.8094088,0.00014222,2]
[422972331,1779696644000,-150.0,0.00014207,2]
[422972342,1779696644000,-150.0,0.00014237,2]
[422972344,1779696644000,-150.0,0.00014237,2]
[422972339,1779696644000,-150.0,0.00014237,2]
[422972390,1779696644000,-1134.0674793,0.0001427,2]
[422972387,1779696644000,-720.34,0.0001427,2]
[422972395,1779696644000,-150.0,0.00014273,2]
[422972452,1779696644000,-150.0,0.00014487,2]
[422972458,1779696644000,-150.0,0.00014507,2]
[422972463,1779696644000,-12250.42446121,0.00014519,2]
[422972460,1779696644000,-150.0,0.00014518,2]
[422972465,1779696644000,-150.0,0.00014527,2]
[422972475,1779696644000,-150.0,0.00014567,2]
[422972477,1779696644000,-150.0,0.0001457,2]
[422972479,1779696644000,-150.0,0.00014587,2]
[422972481,1779696644000,-303.66,0.00014591,2]
[422972467,1779696644000,-150.0,0.00014547,2]
[422972483,1779696644000,-150.0,0.00014607,2]
[422972473,1779696644000,-150.0,0.00014558,2]
[422972469,1779696644000,-180.99,0.00014558,2]
[422972471,1779696644000,-150.0,0.00014558,2]
[422972485,1779696644000,-150.0,0.00014612,2]
[422972487,1779696644000,-150.0,0.00014612,2]
[422972488,1779696644000,-150.0,0.00014627,2]
[422972489,1779696644000,-150.0,0.00014629,2]
[422972402,1779696644000,-150.0,0.00014327,2]
[422972501,1779696644000,-251.13945625,0.00014685,2]
[422972497,1779696644000,-150.0,0.00014665,2]
[422972503,1779696644000,-150.0,0.00014687,2]
[422972492,1779696644000,-150.0,0.00014647,2]
[422972507,1779696644000,-150.0,0.00014701,2]
[422972495,1779696644000,-368.01701448,0.00014655,2]
[422972505,1779696644000,-17973.90431964,0.000147,2]
[422972493,1779696644000,-150.0,0.00014653,2]
[422972454,1779696644000,-150.0,0.00014487,2]
[422972441,1779696644000,-150.0,0.00014487,2]
[422972499,1779696644000,-150.0,0.00014667,2]
[422972447,1779696644000,-150.0,0.00014487,2]
[422972456,1779696644000,-3168.53,0.00014504,2]
[422972407,1779696644000,-150.0,0.00014344,2]
[422972406,1779696644000,-150.0,0.00014344,2]
[422972396,1779696644000,-150.0,0.00014287,2]
[422972404,1779696644000,-150.0,0.00014331,2]
[422972409,1779696644000,-259.96182998,0.00014346,2]
[422972398,1779696644000,-150.0,0.00014307,2]
[422972411,1779696644000,-150.0,0.00014347,2]
[422972400,1779696644000,-150.0,0.0001432,2]
[422972413,1779696644000,-185.63,0.00014356,2]
[422972416,1779696644000,-166.66,0.00014384,2]
[422972418,1779696644000,-150.0,0.00014387,2]
[422972415,1779696644000,-150.0,0.00014367,2]
[422972392,1779696644000,-182917.9302169,0.0001427,2]
[422972420,1779696644000,-150.0,0.00014404,2]
[422972446,1779696644000,-150.0,0.00014487,2]
[422972429,1779696644000,-150.0,0.00014427,2]
[422972443,1779696644000,-150.0,0.00014487,2]
[422972450,1779696644000,-150.0,0.00014487,2]
[422972439,1779696644000,-353.32539306,0.00014475,2]
[422972433,1779696644000,-150.0,0.00014451,2]
[422972437,1779696644000,-150.0,0.00014467,2]
[422972431,1779696644000,-150.0,0.00014447,2]
[422972428,1779696644000,-150.0,0.00014424,2]
[422972426,1779696644000,-3333.96732322,0.00014424,2]
[422972422,1779696644000,-150.0,0.00014407,2]
[422972424,1779696644000,-150.0,0.00014415,2]
[422972435,1779696644000,-198.99955864,0.00014457,2]
[422972572,1779696645000,-150.0,0.00014866,2]
[422972560,1779696645000,-40814.5070633,0.00014829,2]
[422972570,1779696645000,-2000.0,0.0001485,2]
[422972562,1779696645000,-150.0,0.00014844,2]
[422972574,1779696645000,-150.0,0.00014879,2]
[422972579,1779696645000,-150.0,0.00014893,2]
[422972564,1779696645000,-150.0,0.00014846,2]
[422972566,1779696645000,-720.34,0.00014849,2]
[422972576,1779696645000,-150.0,0.00014886,2]
[422972600,1779696645000,-158.38740844,0.000149,2]
[422972581,1779696645000,-1922.28121943,0.000149,2]
[422972583,1779696645000,-259.96182998,0.000149,2]
[422972585,1779696645000,-3333.96732322,0.000149,2]
[422972598,1779696645000,-158.38740844,0.000149,2]
[422972589,1779696645000,-158.38740844,0.000149,2]
[422972596,1779696645000,-158.38740844,0.000149,2]
[422972545,1779696645000,-150.0,0.0001482,2]
[422972601,1779696645000,-158.38740844,0.000149,2]
[422972568,1779696645000,-500.0,0.00014849,2]
[422972556,1779696645000,-11920.7630311,0.00014829,2]
[422972515,1779696645000,-1000.0,0.00014726,2]
[422972554,1779696645000,-278.1496433,0.00014829,2]
[422972587,1779696645000,-158.38740844,0.000149,2]
[422972521,1779696645000,-150.0,0.00014737,2]
[422972523,1779696645000,-150.0,0.00014737,2]
[422972525,1779696645000,-150.0,0.00014737,2]
[422972527,1779696645000,-150.0,0.00014747,2]
[422972519,1779696645000,-150.0,0.00014727,2]
[422972517,1779696645000,-324.16628027,0.00014726,2]
[422972513,1779696645000,-500.0,0.00014726,2]
[422972529,1779696645000,-150.0,0.00014767,2]
[422972534,1779696645000,-150.0,0.00014786,2]
[422972532,1779696645000,-150.0,0.00014772,2]
[422972531,1779696645000,-150.0,0.00014772,2]
[422972539,1779696645000,-290.648046,0.000148,2]
[422972543,1779696645000,-2265.1748591,0.00014819,2]
[422972537,1779696645000,-150.0,0.00014799,2]
[422972509,1779696645000,-150.0,0.00014705,2]
[422972548,1779696645000,-3158.3715105,0.00014824,2]
[422972541,1779696645000,-150.0,0.00014806,2]
[422972552,1779696645000,-150.0,0.00014826,2]
[422972558,1779696645000,-253.0446582,0.00014829,2]
[422972604,1779696645000,-196.64301011,0.000149,2]
[422972511,1779696645000,-150.0,0.00014707,2]
[422972594,1779696645000,-158.38740844,0.000149,2]
[422972643,1779696645000,-151.62598739,0.00014986,2]
[422972656,1779696645000,-720.34,0.00014999,2]
[422972658,1779696645000,-720.34,0.00014999,2]
[422972662,1779696645000,-720.34,0.00014999,2]
[422972660,1779696645000,-720.34,0.00014999,2]
[422972675,1779696645000,-720.34,0.00014999,2]
[422972677,1779696645000,-720.52946099,0.00014999,2]
[422972679,1779696645000,-500.0,0.00014999,2]
[422972685,1779696645000,-500.0,0.00014999,2]
[422972653,1779696645000,-720.34,0.00014999,2]
[422972683,1779696645000,-500.0,0.00014999,2]
[422972694,1779696645000,-1490.0,0.00015,2]
[422972692,1779696645000,-930533.62450568,0.00015,2]
[422972681,1779696645000,-500.0,0.00014999,2]
[422972689,1779696645000,-3643488.83045469,0.00015,2]
[422972708,1779696645000,-151.0,0.00011755,2]
[422972710,1779696645000,-151.0,0.00011765,2]
[422972714,1779696645000,-28203.93293409,0.00015,2]
[422972712,1779696645000,-8967.06706591,0.00014113,2]
[422972591,1779696645000,-158.38740844,0.000149,2]
[422972687,1779696645000,-461.6,0.00014999,2]
[422972639,1779696645000,-152.47160633,0.00014986,2]
[422972550,1779696645000,-214.0323234,0.00014824,2]
[422972641,1779696645000,-270.2719285,0.00014986,2]
[422972606,1779696645000,-455.4855116,0.000149,2]
[422972651,1779696645000,-720.34,0.00014999,2]
[422972603,1779696645000,-12250.42446121,0.000149,2]
[422972613,1779696645000,-150.0,0.00014915,2]
[422972609,1779696645000,-150.0,0.00014903,2]
[422972615,1779696645000,-150.0,0.00014915,2]
[422972617,1779696645000,-150.0,0.00014926,2]
[422972629,1779696645000,-222.85455466,0.00014986,2]
[422972632,1779696645000,-152.13755173,0.00014986,2]
[422972619,1779696645000,-150.0,0.00014946,2]
[422972611,1779696645000,-150.0,0.00014906,2]
[422972621,1779696645000,-2000.0,0.0001495,2]
[422972625,1779696645000,-150.0,0.00014986,2]
[422972627,1779696645000,-150.50757141,0.00014986,2]
[422972631,1779696645000,-151.84740649,0.00014986,2]
[422972635,1779696645000,-153.8131914,0.00014986,2]
[422972637,1779696645000,-158.72318336,0.00014986,2]
[422972645,1779696645000,-151.04436122,0.00014986,2]
[422972648,1779696645000,-616.32636409,0.0001499,2]
[422972646,1779696645000,-216.29887448,0.00014986,2]
[422972623,1779696645000,-150.0,0.00014966,2]
[422972753,1779696646000,-9360.58543143,0.00015,2]
[422972755,1779696646000,-18605.5,0.00015,2]
[422972751,1779696646000,-3636.0,0.00013007,2]
[422972763,1779696646000,-3000.0,0.00015,2]
[422972761,1779696646000,-213930.2898831,0.00015,2]
[422972784,1779696646000,-3357.69990995,0.00015,2]
[422972780,1779696646000,-378.47901451,0.00015,2]
[422972759,1779696646000,-519.47,0.00015,2]
[422974515,1779696931000,152.99,6.258e-05,2]
[422975504,1779697832000,-285.0,0.00010567,2]
[422975505,1779697832000,-50.61213,0.00010668,2]
[422975503,1779697832000,-263.69,0.0001,2]
[422975506,1779697832000,-130.37787,0.00010668,2]
[422975510,1779697832000,-300.0,0.00010699,2]
[422975508,1779697832000,-336.20680868,0.00010699,2]
[422975511,1779697832000,-889.16237755,0.000107,2]
[422975509,1779697832000,-320.26394824,0.00010699,2]
[422975507,1779697832000,-543.52924308,0.00010699,2]
[422975541,1779697833000,-500.0,0.00011148,2]
[422975528,1779697833000,-204.98727164,0.0001105,2]
[422975527,1779697833000,-5916.51774325,0.0001105,2]
[422975526,1779697833000,-858.3586264,0.00011049,2]
[422975529,1779697833000,-3573.05175732,0.00011099,2]
[422975530,1779697833000,-2362.92190488,0.00011099,2]
[422975532,1779697833000,-500.0,0.00011148,2]
[422975533,1779697833000,-615.8661541,0.00011148,2]
[422975543,1779697833000,-500.0,0.00011148,2]
[422975535,1779697833000,-500.0,0.00011148,2]
[422975542,1779697833000,-500.0,0.00011148,2]
[422975531,1779697833000,-181.51908103,0.00011139,2]
[422975524,1779697833000,-160.7504,0.00011021,2]
[422975525,1779697833000,-185.63,0.00011034,2]
[422975521,1779697833000,-4999.99,0.000109,2]
[422975520,1779697833000,-9999.99,0.000109,2]
[422975522,1779697833000,-166.91,0.00010928,2]
[422975519,1779697833000,-600.0,0.000109,3]
[422975518,1779697833000,-150.0,0.00010899,2]
[422975516,1779697833000,-215.38528485,0.00010711,2]
[422975517,1779697833000,-400.0,0.000108,3]
[422975515,1779697833000,-576.27,0.000107,2]
[422975514,1779697833000,-200.0,0.000107,3]
[422975513,1779697833000,-25598.16648252,0.000107,2]
[422975512,1779697833000,-3196.4,0.000107,2]
[422975523,1779697833000,-250.0,0.00011,2]
[422975544,1779697833000,-500.0,0.00011148,2]
[422975546,1779697833000,-500.0,0.00011148,2]
[422975537,1779697833000,-500.0,0.00011148,2]
[422975575,1779697833000,-500.0,0.00011148,2]
[422975545,1779697833000,-500.0,0.00011148,2]
[422975574,1779697833000,-500.0,0.00011148,2]
[422975572,1779697833000,-500.0,0.00011148,2]
[422975573,1779697833000,-500.0,0.00011148,2]
[422975571,1779697833000,-500.0,0.00011148,2]
[422975570,1779697833000,-500.0,0.00011148,2]
[422975569,1779697833000,-500.0,0.00011148,2]
[422975566,1779697833000,-500.0,0.00011148,2]
[422975567,1779697833000,-500.0,0.00011148,2]
[422975564,1779697833000,-500.0,0.00011148,2]
[422975565,1779697833000,-500.0,0.00011148,2]
[422975556,1779697833000,-500.0,0.00011148,2]
[422975568,1779697833000,-500.0,0.00011148,2]
[422975558,1779697833000,-500.0,0.00011148,2]
[422975540,1779697833000,-500.0,0.00011148,2]
[422975552,1779697833000,-500.0,0.00011148,2]
[422975547,1779697833000,-500.0,0.00011148,2]
[422975539,1779697833000,-500.0,0.00011148,2]
[422975562,1779697833000,-500.0,0.00011148,2]
[422975549,1779697833000,-500.0,0.00011148,2]
[422975548,1779697833000,-500.0,0.00011148,2]
[422975551,1779697833000,-500.0,0.00011148,2]
[422975550,1779697833000,-500.0,0.00011148,2]
[422975554,1779697833000,-500.0,0.00011148,2]
[422975560,1779697833000,-500.0,0.00011148,2]
[422975593,1779697834000,-500.0,0.00011148,2]
[422975594,1779697834000,-500.0,0.00011148,2]
[422975595,1779697834000,-500.0,0.00011148,2]
[422975599,1779697834000,-500.0,0.00011148,2]
[422975597,1779697834000,-500.0,0.00011148,2]
[422975602,1779697834000,-500.0,0.00011148,2]
[422975576,1779697834000,-500.0,0.00011148,2]
[422975596,1779697834000,-500.0,0.00011148,2]
[422975601,1779697834000,-500.0,0.00011148,2]
[422975587,1779697834000,-500.0,0.00011148,2]
[422975598,1779697834000,-500.0,0.00011148,2]
[422975586,1779697834000,-500.0,0.00011148,2]
[422975578,1779697834000,-500.0,0.00011148,2]
[422975588,1779697834000,-500.0,0.00011148,2]
[422975590,1779697834000,-365.14130431,0.00011148,2]
[422975592,1779697834000,-500.0,0.00011148,2]
[422975585,1779697834000,-500.0,0.00011148,2]
[422975583,1779697834000,-500.0,0.00011148,2]
[422975589,1779697834000,-500.0,0.00011148,2]
[422975584,1779697834000,-500.0,0.00011148,2]
[422975582,1779697834000,-500.0,0.00011148,2]
[422975581,1779697834000,-500.0,0.00011148,2]
[422975580,1779697834000,-500.0,0.00011148,2]
[422975579,1779697834000,-500.0,0.00011148,2]
[422975577,1779697834000,-500.0,0.00011148,2]
[422975604,1779697834000,-500.0,0.00011148,2]
[422975591,1779697834000,-183.83299403,0.00011148,2]
[422975603,1779697834000,-500.0,0.00011148,2]
[422975600,1779697834000,-500.0,0.00011148,2]
[422975605,1779697834000,-500.0,0.00011148,2]
[422975606,1779697834000,-500.0,0.00011148,2]
[422975632,1779697834000,-8473.74945252,0.00011149,2]
[422975633,1779697834000,-313.34184775,0.00011149,2]
[422975629,1779697834000,-191.65153977,0.00011149,2]
[422975630,1779697834000,-136452.39915052,0.00011149,2]
[422975631,1779697834000,-46070.67113352,0.00011149,2]
[422975627,1779697834000,-500.0,0.00011148,2]
[422975628,1779697834000,-452.49100721,0.00011148,2]
[422975626,1779697834000,-500.0,0.00011148,2]
[422975624,1779697834000,-500.0,0.00011148,2]
[422975620,1779697834000,-500.0,0.00011148,2]
[422975621,1779697834000,-500.0,0.00011148,2]
[422975622,1779697834000,-500.0,0.00011148,2]
[422975611,1779697834000,-500.0,0.00011148,2]
[422975619,1779697834000,-500.0,0.00011148,2]
[422975614,1779697834000,-500.0,0.00011148,2]
[422975607,1779697834000,-500.0,0.00011148,2]
[422975608,1779697834000,-500.0,0.00011148,2]
[422975610,1779697834000,-500.0,0.00011148,2]
[422975612,1779697834000,-500.0,0.00011148,2]
[422975609,1779697834000,-500.0,0.00011148,2]
[422975615,1779697834000,-386.51413043,0.00011148,2]
[422975617,1779697834000,-500.0,0.00011148,2]
[422975616,1779697834000,-500.0,0.00011148,2]
[422975625,1779697834000,-482.4115789,0.00011148,2]
[422975618,1779697834000,-500.0,0.00011148,2]
[422975613,1779697834000,-500.0,0.00011148,2]
[422975623,1779697834000,-500.0,0.00011148,2]
[422975635,1779697838000,-2009.99999999,0.00011149,2]
[422975870,1779697840000,-634.53,0.00011149,2]
[422976221,1779697843000,-1344.9304,0.00011149,2]
[422976240,1779697843000,-1245.61888089,0.00011149,2]
[422976598,1779697846000,-504.0,0.00011149,2]
[422976595,1779697846000,-2937.21688312,0.00011149,2]
[422976661,1779697847000,-52887.38562852,0.00011149,2]
[422976652,1779697847000,-653.74439782,0.00011149,2]
[422976654,1779697847000,-1750.0174385,0.00011149,2]
[422978031,1779697996000,-150.0,0.00011147,2]
[422978032,1779697996000,-151.66542978,0.00011148,2]
[422978033,1779697996000,-500.0,0.00011148,2]
[422978030,1779697996000,-151.0,0.00011146,2]
[422978027,1779697996000,-215.38528485,0.00011049,2]
[422978028,1779697996000,-300.0,0.00011127,2]
[422978026,1779697996000,-2500.0,0.00011049,2]
[422978025,1779697996000,-1828.9471,0.00011049,2]
[422978024,1779697996000,-191.65153978,0.00011048,2]
[422978023,1779697996000,-664.64327137,0.0001,2]
[422978034,1779697996000,-500.0,0.00011148,2]
[422978029,1779697996000,-545.47,0.00011128,2]
[422978037,1779697996000,-500.0,0.00011148,2]
[422978043,1779697996000,-500.0,0.00011148,2]
[422978036,1779697996000,-500.0,0.00011148,2]
[422978038,1779697996000,-500.0,0.00011148,2]
[422978041,1779697996000,-500.0,0.00011148,2]
[422978040,1779697996000,-500.0,0.00011148,2]
[422978039,1779697996000,-500.0,0.00011148,2]
[422978042,1779697996000,-500.0,0.00011148,2]
[422978044,1779697996000,-500.0,0.00011148,2]
[422978045,1779697996000,-500.0,0.00011148,2]
[422978035,1779697996000,-500.0,0.00011148,2]
[422978048,1779697996000,-500.0,0.00011148,2]
[422978047,1779697996000,-500.0,0.00011148,2]
[422978049,1779697996000,-500.0,0.00011148,2]
[422978046,1779697996000,-500.0,0.00011148,2]
[422978051,1779697997000,-500.0,0.00011148,2]
[422978052,1779697997000,-500.0,0.00011148,2]
[422978053,1779697997000,-500.0,0.00011148,2]
[422978055,1779697997000,-500.0,0.00011148,2]
[422978050,1779697997000,-500.0,0.00011148,2]
[422978057,1779697997000,-260.48097791,0.00011148,2]
[422978054,1779697997000,-500.0,0.00011148,2]
[422978059,1779697997000,-996.3960505,0.00011149,2]
[422978060,1779697997000,-11800.56073874,0.00011149,2]
[422978058,1779697997000,-182.33668453,0.00011148,2]
[422978056,1779697997000,-561.46292254,0.00011148,2]
[422978064,1779698099000,5733.46298391,0.0002,120]
[422978074,1779698319000,159.72,5.575e-05,2]
[422978079,1779698403000,175.0,0.000203,120]
[422978087,1779698705000,176.0,0.00020309,120]
[422978094,1779699003000,177.0,0.00020318,120]
[422978137,1779699031000,-500.0,0.00010948,2]
[422978139,1779699031000,-612.47491941,0.00010948,2]
[422978123,1779699031000,-150.0,0.00010947,2]
[422978129,1779699031000,-500.0,0.00010948,2]